bitfinex-derivatives/quotes_ETHF0:USTF0_20250709
["timestamp","ask_amount","ask_price","bid_price","bid_amount"]
[1752067019775,3.2078,2665.2,2665.1,1.39093]
[1752067019977,3.8821,2665.2,2665.1,1.39093]
[1752067020580,3.2078,2665.2,2665.1,1.39093]
[1752067020777,3.8821,2665.2,2665.1,1.39093]
[1752067022372,3.2078,2665.2,2665.1,1.39093]
[1752067022577,3.8821,2665.2,2665.1,1.39093]
[1752067023778,29.4838,2665.2,2665.1,2.39623]
[1752067024373,30.1581,2665.2,2665.1,0.75033]
[1752067024584,37.96817,2665.2,2664.5,1.87624]
[1752067024774,3.2078,2664.8,2664.3,1.87639]
[1752067024973,29.28964,2664.7,2664.5,0.75048]
[1752067025175,28.35534,2664.7,2664.5,0.75048]
[1752067025486,2.3903,2664.6,2664.5,0.75048]
[1752067025777,0.75051,2664.5,2664.4,0.75051]
[1752067025981,0.75056,2664.3,2663.8,2.882]
[1752067026281,0.6743,2663.9,2663.8,0.7507]
[1752067026479,30.1541,2663.9,2663.8,0.7507]
[1752067027079,31.4387,2663.9,2663.8,0.7507]
[1752067027680,31.4387,2663.9,2663.8,1.3913]
[1752067028081,3.2078,2664.2,2664.1,0.75061]
[1752067028277,3.2078,2664.2,2664.1,1.39121]
[1752067028478,29.4778,2664.2,2664.1,1.39121]
[1752067028881,4.4924,2664.5,2664.4,0.75053]
[1752067029076,3.2078,2664.5,2664.4,1.39113]
[1752067029376,26.271,2664.5,2664.4,1.39113]
[1752067029581,0.6743,2664.5,2664.4,1.39113]
[1752067029885,26.9453,2664.5,2664.4,1.39113]
[1752067031289,26.9453,2664.5,2664.4,0.75053]
[1752067031484,26.9453,2664.5,2664.4,1.39113]
[1752067034188,38.71265553,2664.5,2663.6,2.66105]
[1752067034389,3.2078,2664.2,2664.0,0.75063]
[1752067034685,3.2078,2664.2,2664.0,1.39123]
[1752067034686,28.3062,2664.1,2664.0,1.39123]
[1752067034880,28.3062,2664.1,2664.0,0.75063]
[1752067035480,29.05683,2664.1,2663.9,0.75065]
[1752067035684,29.99113,2664.1,2664.0,0.75064]
[1752067036292,29.99113,2664.1,2663.9,0.75065]
[1752067036493,29.99113,2664.1,2664.0,0.75064]
[1752067036992,29.2405,2664.1,2664.0,0.75064]
[1752067038100,29.99112,2664.1,2664.0,0.75064]
[1752067038285,28.3062,2664.1,2664.0,0.75064]
[1752067038611,28.3062,2664.1,2664.0,1.39124]
[1752067039698,29.05681,2664.1,2664.0,0.75064]
[1752067040494,0.75065,2664.0,2663.9,0.75065]
[1752067040694,0.6372,2664.0,2663.9,1.39125]
[1752067040996,1.38784,2664.0,2663.9,0.6406]
[1752067041192,0.75074,2663.7,2663.6,0.75074]
[1752067041391,1.2496,2663.9,2663.8,0.7507]
[1752067041595,2.63747,2663.9,2663.8,1.3792]
[1752067042096,27.5096,2663.9,2663.8,1.3792]
[1752067042291,26.26,2663.9,2663.8,1.3792]
[1752067042695,0.75067,2663.9,2663.8,1.3792]
[1752067042995,27.64687,2663.9,2663.8,1.3792]
[1752067043598,27.64687,2663.9,2663.8,0.7507]
[1752067043798,28.99717,2663.9,2663.8,0.7507]
[1752067044292,28.99717,2663.9,2663.8,1.3792]
[1752067044293,26.8962,2663.9,2663.8,1.3792]
[1752067044493,3.2078,2664.0,2663.9,0.75067]
[1752067044698,29.4658,2664.0,2663.9,1.37917]
[1752067044898,29.4658,2664.0,2663.9,2.35477]
[1752067045197,3.2078,2664.3,2664.2,0.75058]
[1752067045397,3.2078,2664.6,2664.5,0.7505]
[1752067045693,30.89220522,2664.6,2664.5,1.379]
[1752067045901,31.52940522,2664.6,2664.5,1.379]
[1752067046196,32.27987522,2664.6,2664.5,0.7505]
[1752067046398,33.63017522,2664.6,2664.5,0.7505]
[1752067046793,32.87970522,2664.6,2664.5,0.7505]
[1752067046995,33.63017522,2664.6,2664.5,1.379]
[1752067047397,33.62717522,2664.6,2664.5,1.379]
[1752067047596,34.60567522,2664.6,2664.5,0.7505]
[1752067048105,0.75051,2664.5,2664.4,0.75051]
[1752067048299,1.38771,2664.5,2664.4,0.75051]
[1752067048501,0.6372,2664.5,2664.4,0.75051]
[1752067048699,0.6372,2664.5,2664.4,1.37901]
[1752067049700,32.54109,2664.6,2664.5,0.7505]
[1752067049701,30.8121,2664.6,2664.5,0.7505]
[1752067050001,32.8747706,2664.6,2664.5,0.7505]
[1752067050207,0.75057,2664.3,2664.2,0.75056]
[1752067050505,30.84557,2664.3,2664.2,0.75056]
[1752067051102,0.7506,2664.2,2664.1,0.75059]
[1752067051302,1.3878,2664.2,2664.1,0.75059]
[1752067051498,3.7054,2664.2,2664.1,0.75061]
[1752067051998,2.9548,2664.2,2664.1,0.75061]
[1752067052203,30.1608,2664.3,2664.2,0.75058]
[1752067052401,31.58776029,2664.3,2664.2,1.37908]
[1752067052606,32.22496029,2664.3,2664.2,1.37908]
[1752067053001,3.2078,2664.6,2664.5,0.7505]
[1752067053202,4.63527003,2664.6,2664.5,2.3546]
[1752067053408,30.88227003,2664.6,2664.5,2.3546]
[1752067054210,4.63527003,2664.6,2664.5,2.3546]
[1752067054398,3.2078,2664.6,2664.5,2.3546]
[1752067054601,3.2078,2664.6,2664.5,3.5997]
[1752067057510,3.2078,2664.6,2664.5,2.3546]
[1752067057710,3.2078,2664.6,2664.5,3.6863]
[1752067059110,3.2078,2664.6,2664.5,2.3546]
[1752067060309,3.845,2664.6,2664.5,2.3546]
[1752067061712,3.2078,2664.6,2664.5,2.3546]
[1752067062213,3.845,2664.6,2664.5,2.3546]
[1752067062414,29.4428,2664.6,2664.5,2.3546]
[1752067062609,3.2078,2664.6,2664.5,2.3546]
[1752067062812,3.845,2664.6,2664.5,2.3546]
[1752067063016,3.2078,2664.6,2664.5,2.3546]
[1752067063417,3.845,2664.6,2664.5,2.3546]
[1752067063613,3.845,2664.6,2664.5,1.379]
[1752067064815,3.845,2664.6,2664.5,2.3546]
[1752067065315,3.845,2664.6,2664.5,1.379]
[1752067068220,29.4368,2664.6,2664.5,2.3546]
[1752067070823,29.4368,2664.6,2664.5,3.74284842]
[1752067071525,3.2078,2664.6,2664.5,3.74284842]
[1752067071825,29.4308,2664.6,2664.5,3.74284842]
[1752067073419,3.2078,2664.6,2664.5,3.74284842]
[1752067074927,3.8427,2664.6,2664.5,1.3931]
[1752067076120,3.2078,2664.6,2664.5,1.3931]
[1752067076327,29.4268,2664.6,2664.5,2.3414]
[1752067078026,4.4859,2664.9,2664.8,0.75042]
[1752067078217,32.76355105,2664.9,2664.8,1.39302]
[1752067079119,32.76355105,2664.9,2664.8,0.75042]
[1752067079323,33.79025105,2664.9,2664.8,0.75042]
[1752067080720,32.76355105,2664.9,2664.8,0.75042]
[1752067081027,32.76355105,2664.9,2664.8,1.39302]
[1752067082124,31.48045105,2664.9,2664.8,2.34132]
[1752067082629,5.26845105,2664.9,2664.8,2.34132]
[1752067082930,27.63475105,2664.9,2664.8,3.02892]
[1752067083327,26.209,2664.9,2664.8,3.02892]
[1752067083525,0.7754,2665.1,2665.0,0.75036]
[1752067083726,28.40957815,2665.1,2665.0,3.72950842]
[1752067083926,29.04447815,2665.1,2665.0,3.72950842]
[1752067084631,29.04347815,2665.1,2665.0,3.72950842]
[1752067084931,28.26707815,2665.1,2665.0,3.72950842]
[1752067086133,1.42617815,2665.1,2665.0,3.72950842]
[1752067086433,2.06107815,2665.1,2665.0,3.72950842]
[1752067086632,1.42617815,2665.1,2665.0,3.72950842]
[1752067087025,2.06107815,2665.1,2665.0,3.72950842]
[1752067087430,3.2078,2665.2,2665.1,0.75034]
[1752067087628,5.2687188,2665.2,2665.1,1.39294]
[1752067088330,5.2687188,2665.2,2665.1,0.75034]
[1752067088835,5.2687188,2665.2,2665.1,1.39294]
[1752067089035,4.6338188,2665.2,2665.1,1.39294]
[1752067089230,5.2687188,2665.2,2665.1,2.34124]
[1752067089436,5.2687188,2665.2,2665.1,1.39294]
[1752067089730,2.0609188,2665.2,2665.1,1.39294]
[1752067091537,1.4260188,2665.2,2665.1,1.39294]
[1752067091732,1.4260188,2665.2,2665.1,2.34124]
[1752067092035,26.203,2665.3,2665.2,0.75031]
[1752067092235,28.25985092,2665.3,2665.2,1.39291]
[1752067092435,28.25985092,2665.3,2665.2,0.75031]
[1752067092636,28.25985092,2665.3,2665.2,1.39291]
[1752067093036,28.25985092,2665.3,2665.2,0.75031]
[1752067093438,29.56805092,2665.3,2665.2,1.39291]
[1752067093732,29.56805092,2665.3,2665.2,0.75031]
[1752067093939,29.55805092,2665.3,2665.2,1.39291]
[1752067094140,29.55805092,2665.3,2665.2,0.75031]
[1752067094735,29.55805092,2665.3,2665.2,1.39291]
[1752067095339,30.58475092,2665.3,2665.2,0.75031]
[1752067096335,3.2078,2665.5,2665.4,0.75025]
[1752067096540,3.8788,2665.8,2665.7,0.75017]
[1752067096838,32.12558161,2665.8,2665.7,0.75017]
[1752067097035,33.43878161,2665.8,2665.7,1.39277]
[1752067097234,33.43878161,2665.8,2665.7,0.75017]
[1752067097429,35.21562161,2665.8,2665.7,0.75017]
[1752067097634,34.46548161,2665.8,2665.7,0.75017]
[1752067097834,35.85373003,2665.8,2665.7,0.75017]
[1752067098331,36.60387003,2665.8,2665.7,0.75017]
[1752067098536,0.7502,2665.7,2665.6,0.75017]
[1752067098738,5.14908161,2665.7,2665.6,0.75017]
[1752067098947,10.14908161,2665.7,2665.6,0.75017]
[1752067099932,9.39888161,2665.7,2665.6,0.75017]
[1752067100844,4.39888161,2665.7,2665.6,0.75017]
[1752067102146,5.14905161,2665.7,2665.6,0.75017]
[1752067102437,6.27433161,2665.7,2665.1,1.87583]
[1752067102744,3.95802,2665.5,2665.4,0.75025]
[1752067102939,8.35645003,2665.5,2665.4,0.75025]
[1752067103244,14.72305003,2665.5,2665.4,0.75025]
[1752067103440,9.72305003,2665.5,2665.4,0.75025]
[1752067103740,8.97283003,2665.5,2664.9,1.87594]
[1752067104044,0.75039,2665.0,2664.9,0.75037]
[1752067104240,27.57669,2665.0,2664.9,0.75037]
[1752067104440,30.46039,2665.0,2664.9,0.75037]
[1752067104837,1.87599,2664.9,2664.4,0.6601]
[1752067105036,2.03754842,2664.5,2664.0,0.29456063]
[1752067105342,1.973,2664.4,2664.1,0.75059]
[1752067105535,0.6953,2664.4,2664.3,1.41776]
[1752067105739,26.8713,2664.4,2664.3,1.41776]
[1752067106641,31.50223832,2664.4,2664.3,0.75056]
[1752067106842,31.50223832,2664.4,2664.3,1.41776]
[1752067107145,32.77993832,2664.4,2664.3,1.41776]
[1752067108346,26.8713,2664.4,2664.3,1.41776]
[1752067108548,27.5206,2664.4,2664.3,1.41776]
[1752067111042,27.5206,2664.4,2664.3,0.75056]
[1752067111442,27.5206,2664.4,2664.3,1.41776]
[1752067113343,26.176,2664.4,2664.3,1.41776]
[1752067113547,26.8253,2664.4,2664.3,1.41776]
[1752067115148,31.3627,2664.4,2664.3,1.41776]
[1752067117353,32.2997,2664.4,2664.3,1.41776]
[1752067117850,32.2997,2664.4,2664.3,0.75056]
[1752067118054,0.75061,2664.2,2664.1,0.75058]
[1752067118249,26.91961,2664.2,2664.1,0.75058]
[1752067118448,28.50591,2664.2,2664.1,0.75058]
[1752067118648,29.17481,2664.2,2664.1,0.75058]
[1752067121255,0.75066,2664.1,2664.0,0.75062]
[1752067121457,6.87456,2664.1,2664.0,0.75062]
[1752067122155,6.1239,2664.1,2664.0,0.75062]
[1752067122456,6.87452,2664.1,2664.0,0.75062]
[1752067122757,5.93752,2664.1,2664.0,1.41782]
[1752067123059,29.3738,2664.1,2664.0,1.41782]
[1752067123258,30.0231,2664.1,2664.0,1.41782]
[1752067123459,29.3738,2664.1,2664.0,1.41782]
[1752067124153,30.77072,2664.1,2664.0,1.41782]
[1752067124552,4.60772,2664.1,2664.0,1.41782]
[1752067124959,30.77072,2664.1,2664.0,1.41782]
[1752067125254,3.8571,2664.1,2664.0,1.41782]
[1752067125460,30.0201,2664.1,2664.0,1.41782]
[1752067125661,29.3708,2664.1,2664.0,1.41782]
[1752067125856,3.8571,2664.1,2664.0,2.35382]
[1752067126057,30.0191,2664.1,2664.0,2.35382]
[1752067126765,26.8113,2664.1,2664.0,2.35382]
[1752067127564,3.2078,2664.4,2664.3,0.75056]
[1752067127760,29.3698,2664.4,2664.3,1.41776]
[1752067128462,30.76963,2664.4,2664.3,1.41776]
[1752067128964,30.0191,2664.4,2664.3,1.41776]
[1752067129760,3.8571,2664.4,2664.3,1.41776]
[1752067129956,0.75046,2664.7,2664.6,0.75045]
[1752067130155,26.8073,2664.7,2664.6,1.41765]
[1752067130362,28.23325618,2664.7,2664.6,0.75045]
[1752067130760,28.23225618,2664.7,2664.6,0.75045]
[1752067130958,31.43905618,2664.7,2664.6,0.75045]
[1752067131156,3.2078,2665.1,2664.6,2.31955]
[1752067131356,3.2078,2665.1,2665.0,0.75037]
[1752067131555,30.79093282,2665.1,2665.0,0.75037]
[1752067131760,31.42203282,2665.1,2665.0,0.75037]
[1752067133263,5.26603282,2665.1,2665.0,0.75037]
[1752067133463,31.41903282,2665.1,2665.0,0.75037]
[1752067134669,30.78793282,2665.1,2665.0,0.75037]
[1752067134863,32.16937282,2665.1,2665.0,1.38887]
[1752067135058,31.41703282,2665.1,2665.0,1.38887]
[1752067136371,32.16737282,2665.1,2665.0,1.38887]
[1752067136761,31.41703282,2665.1,2665.0,1.38887]
[1752067137367,32.16737282,2665.1,2665.0,1.38887]
[1752067137671,31.41703282,2665.1,2665.0,1.38887]
[1752067138580,32.16737282,2665.1,2665.0,1.38887]
[1752067138878,31.41703282,2665.1,2665.0,1.38887]
[1752067139372,32.16737282,2665.1,2665.0,1.38887]
[1752067140670,33.12107282,2665.1,2665.0,0.75037]
[1752067141181,0.75041,2665.0,2664.9,0.75037]
[1752067141477,0.7505,2664.7,2664.6,0.75046]
[1752067141671,0.75053,2664.5,2664.4,0.75051]
[1752067141871,28.27843122,2664.5,2664.4,0.75051]
[1752067142476,29.70287015,2664.5,2664.4,0.75051]
[1752067142870,28.27843122,2664.5,2664.4,0.75051]
[1752067143070,29.70288012,2664.5,2664.4,0.75051]
[1752067144474,31.28768012,2664.5,2664.4,0.75051]
[1752067144867,30.53715012,2664.5,2663.9,0.9306]
[1752067145073,2.13950122,2664.2,2664.1,0.75059]
[1752067145271,28.27350122,2664.2,2664.1,0.75059]
[1752067145471,0.75065,2664.1,2664.0,0.75063]
[1752067145674,2.13955122,2664.1,2664.0,0.75063]
[1752067145877,3.47815122,2664.1,2664.0,0.75063]
[1752067146171,5.06295122,2664.1,2664.0,0.75063]
[1752067148576,4.31230122,2664.1,2663.5,0.9306]
[1752067148777,4.59670122,2663.7,2663.4,0.704]
[1752067148977,2.77080122,2663.5,2663.4,0.75079]
[1752067149174,3.72450122,2663.5,2663.4,0.75079]
[1752067149377,4.98170122,2663.5,2663.4,0.75079]
[1752067150071,4.98171122,2663.5,2663.4,0.75082]
[1752067150272,4.23090122,2663.5,2663.0,0.704]
[1752067150474,5.34759122,2663.2,2663.1,0.75087]
[1752067150674,32.10869122,2663.2,2663.1,0.75087]
[1752067150881,31.35780122,2663.2,2663.1,1.38937]
[1752067151381,32.10867122,2663.2,2663.1,0.75087]
[1752067151683,31.35780122,2663.2,2663.1,0.75087]
[1752067151876,31.35780122,2663.2,2663.1,1.38937]
[1752067152077,32.10867122,2663.2,2663.1,0.7509]
[1752067152277,34.31917122,2663.2,2663.1,0.7509]
[1752067153382,0.75094,2663.1,2663.0,0.75091]
[1752067153579,3.30464,2663.1,2663.0,0.75091]
[1752067153786,3.30464,2663.1,2662.7,0.6826]
[1752067153787,9.89630122,2663.1,2662.2,3.2078]
[1752067153978,2.13986122,2662.9,2662.8,0.75659306]
[1752067154180,7.42846302,2662.9,2662.8,1.39509306]
[1752067154378,8.67276302,2662.9,2662.8,1.39509306]
[1752067154684,35.75546302,2662.9,2662.8,0.00563306]
[1752067154879,8.87550302,2662.9,2662.8,0.75661306]
[1752067155182,33.35406122,2662.9,2662.8,0.00563306]
[1752067155579,34.30776122,2662.9,2662.8,0.00563306]
[1752067157778,8.17676122,2662.9,2662.8,0.75661306]
[1752067157981,34.30776122,2662.9,2662.8,0.75661306]
[1752067158176,33.35406122,2662.9,2662.8,0.64413306]
[1752067158381,29.9699,2662.9,2662.8,1.39511306]
[1752067158588,3.8389,2662.9,2662.8,1.39511306]
[1752067158783,29.9699,2662.9,2662.8,2.07381306]
[1752067159179,29.9699,2662.9,2662.8,3.07581306]
[1752067159180,29.9689,2662.9,2662.8,3.07581306]
[1752067159385,29.9689,2662.9,2662.8,2.07381306]
[1752067159685,32.10876122,2662.9,2662.8,0.00563306]
[1752067159890,34.44216122,2662.9,2662.8,0.00563306]
[1752067160479,39.44216122,2662.9,2662.8,0.00563306]
[1752067161284,29.9689,2662.9,2662.8,0.66703306]
[1752067162083,3.2078,2662.9,2662.8,2.42001306]
[1752067162279,29.9868,2662.9,2662.8,2.42001306]
[1752067162484,29.3358,2662.9,2662.8,2.42001306]
[1752067162690,29.9868,2662.9,2662.8,2.42001306]
[1752067162885,29.3358,2662.9,2662.8,2.42001306]
[1752067163082,3.2078,2662.9,2662.8,2.42001306]
[1752067163289,3.2078,2663.2,2663.1,0.7509]
[1752067163583,29.9858,2663.2,2663.1,1.4123]
[1752067163785,3.2078,2663.6,2663.5,0.75076]
[1752067164088,0.75084,2663.4,2663.3,0.75084]
[1752067164295,0.75084,2663.3,2663.2,0.6553]
[1752067164587,3.8588,2663.3,2663.2,2.06756]
[1752067164782,3.95864,2663.3,2663.2,2.06756]
[1752067165181,4.60964,2663.3,2663.2,2.06756]
[1752067165384,3.8588,2663.3,2663.2,2.06756]
[1752067165880,3.2078,2663.6,2663.5,0.75079]
[1752067166082,30.73556,2663.6,2663.5,0.75079]
[1752067166283,30.73556,2663.6,2663.5,1.41219]
[1752067166483,30.73456,2663.6,2663.5,1.41219]
[1752067167086,29.9838,2663.6,2663.5,1.41219]
[1752067167284,30.73456,2663.6,2663.5,1.41219]
[1752067167677,4.60956,2663.6,2663.5,1.41219]
[1752067167881,29.9828,2663.6,2663.5,2.41419]
[1752067168084,3.8588,2663.6,2663.5,2.41419]
[1752067168287,29.3318,2663.6,2663.5,2.41419]
[1752067168481,31.47146122,2663.6,2663.5,0.6614]
[1752067168682,32.12246122,2663.6,2663.5,1.41219]
[1752067169289,31.47146122,2663.6,2663.5,0.6614]
[1752067169790,0.75084,2663.3,2663.2,0.6553]
[1752067169990,31.46854122,2663.3,2663.2,1.3167]
[1752067170288,0.75095,2663.0,2662.9,0.75092]
[1752067170490,4.60975,2663.0,2662.9,2.09382]
[1752067170684,3.95875,2663.0,2662.9,2.09382]
[1752067170885,4.60975,2663.0,2662.9,2.09382]
[1752067171085,3.95875,2663.0,2662.9,2.09382]
[1752067171487,4.60975,2663.0,2662.9,2.09382]
[1752067171687,4.60975,2663.0,2662.9,1.3429]
[1752067172091,0.75096,2662.9,2662.8,0.75660306]
[1752067172283,28.90986122,2662.9,2662.8,1.41800306]
[1752067172589,28.90986122,2662.9,2662.8,0.66703306]
[1752067172790,28.90986122,2662.9,2662.8,0.00563306]
[1752067172991,29.92316122,2662.9,2662.8,0.00563306]
[1752067173191,31.22826122,2662.9,2662.8,0.00563306]
[1752067173692,30.21496122,2662.9,2662.8,1.41801306]
[1752067173888,30.21496122,2662.9,2662.8,0.75661306]
[1752067174090,30.21496122,2662.9,2662.8,0.00563306]
[1752067174792,30.21496122,2662.9,2662.8,1.41801306]
[1752067174994,28.25886122,2662.9,2662.8,1.41801306]
[1752067175195,27.52096,2662.9,2662.8,1.41801306]
[1752067175493,28.97652333,2662.9,2662.8,1.41801306]
[1752067175685,30.36542455,2662.9,2662.8,1.41801306]
[1752067177993,29.61446455,2662.9,2662.8,1.41801306]
[1752067178785,3.49546455,2662.9,2662.8,1.41801306]
[1752067178992,1.45556333,2662.9,2662.8,2.42001306]
[1752067179190,26.116,2662.9,2662.8,2.42001306]
[1752067179392,27.5741428,2662.9,2662.8,2.42001306]
[1752067179685,27.5741428,2662.9,2662.8,3.76171306]
[1752067180992,29.61404402,2662.9,2662.8,0.00563306]
[1752067181192,0.75111,2662.4,2662.3,0.75111]
[1752067181397,0.75112,2662.3,2662.2,0.75114]
[1752067181791,26.113,2662.4,2662.3,0.75112]
[1752067182292,3.2078,2662.6,2662.5,0.75107]
[1752067182493,29.3208,2662.6,2662.5,0.75107]
[1752067182691,30.07184,2662.6,2662.5,0.75107]
[1752067182890,29.3198,2662.6,2662.5,0.75107]
[1752067183794,3.2078,2662.6,2662.5,0.75107]
[1752067183994,29.3198,2662.6,2662.5,0.75107]
[1752067184390,30.7805518,2662.6,2662.5,0.75107]
[1752067184794,30.7805518,2662.6,2662.5,2.41447]
[1752067185890,31.4305518,2662.6,2662.5,2.41447]
[1752067186091,31.4305518,2662.6,2662.5,1.41247]
[1752067189696,32.1815918,2662.6,2662.5,1.41247]
[1752067190898,0.75113,2662.4,2662.3,0.7511]
[1752067191095,26.7658,2662.4,2662.3,1.3799]
[1752067191292,0.6578,2662.4,2662.3,1.3799]
[1752067191493,26.7658,2662.4,2662.3,2.3386]
[1752067192305,3.2078,2662.6,2662.3,1.5875]
[1752067192496,26.108,2662.5,2662.4,1.7098]
[1752067192703,26.108,2662.5,2662.4,2.3386]
[1752067193300,3.2078,2662.6,2662.5,0.75107]
[1752067193507,30.77295636,2662.6,2662.5,2.33857]
[1752067193900,31.43075636,2662.6,2662.5,2.33857]
[1752067195310,31.43075636,2662.6,2662.5,0.75107]
[1752067195606,32.18179636,2662.6,2662.5,0.75107]
[1752067196003,31.43075636,2662.6,2662.5,1.37987]
[1752067196202,32.18179636,2662.6,2662.5,0.75107]
[1752067196403,32.18179636,2662.6,2662.5,1.37987]
[1752067197010,31.43075636,2662.6,2662.5,1.37987]
[1752067197608,32.18179636,2662.6,2662.5,1.37987]
[1752067198417,5.32475636,2662.6,2662.5,2.33857]
[1752067198615,30.77095636,2662.6,2662.5,2.33857]
[1752067198815,4.66695636,2662.6,2662.5,2.33857]
[1752067199013,30.76995636,2662.6,2662.5,2.33857]
[1752067199916,31.42775636,2662.6,2662.5,1.37987]
[1752067201018,31.42775636,2662.6,2662.5,2.33857]
[1752067203021,31.42775636,2662.6,2662.5,1.37987]
[1752067203915,28.21595636,2662.6,2662.5,1.37987]
[1752067205011,28.21595636,2662.6,2662.5,2.02747]
[1752067206025,27.55715636,2662.6,2662.5,2.98617]
[1752067206424,28.21495636,2662.6,2662.5,2.02747]
[1752067206620,27.55715636,2662.6,2662.5,1.37987]
[1752067206923,28.21495636,2662.6,2662.5,1.37987]
[1752067207325,1.45915636,2662.6,2662.5,3.72920265]
[1752067207529,1.45915636,2662.6,2662.5,2.33857]
[1752067207723,27.55415636,2662.6,2662.5,2.33857]
[1752067208123,26.095,2662.6,2662.5,2.33857]
[1752067210429,3.2078,2663.0,2662.9,0.75095]
[1752067210627,3.2078,2663.0,2662.9,1.37975]
[1752067210628,30.76229646,2663.0,2662.9,1.37975]
[1752067211128,31.42009646,2663.0,2662.9,1.37975]
[1752067211824,30.76229646,2663.0,2662.9,1.37975]
[1752067212330,31.42009646,2663.0,2662.9,1.37975]
[1752067212524,1.46249646,2663.0,2662.9,2.33845]
[1752067212728,0.00563306,2663.1,2663.0,0.75093]
[1752067212929,0.00563306,2663.1,2663.0,5.69366265]
[1752067213129,0.00563306,2663.1,2663.0,4.30303]
[1752067214026,0.00563306,2663.1,2663.0,5.69366265]
[1752067217723,0.00563306,2663.1,2663.0,4.30303]
[1752067220530,0.00563306,2663.1,2663.0,2.02863]
[1752067220731,0.63753306,2663.1,2663.0,2.02863]
[1752067223334,0.00563306,2663.1,2663.0,2.02863]
[1752067223540,0.63753306,2663.1,2663.0,2.02863]
[1752067223738,0.00563306,2663.1,2663.0,2.96913]
[1752067226640,0.63753306,2663.1,2663.0,2.96913]
[1752067226847,0.00563306,2663.1,2663.0,2.96913]
[1752067227646,0.63753306,2663.1,2663.0,2.96913]
[1752067228549,0.00563306,2663.1,2663.0,2.96913]
[1752067230639,1.8761,2663.7,2663.4,0.75081]
[1752067230947,27.53532257,2663.6,2663.5,0.75079]
[1752067231141,28.16722257,2663.6,2663.5,0.75079]
[1752067231343,28.16722257,2663.6,2663.5,1.37059]
[1752067231847,28.16622257,2663.6,2663.5,1.37059]
[1752067232645,1.46832257,2663.6,2663.5,1.37059]
[1752067232846,1.46832257,2663.6,2663.5,3.70172265]
[1752067233148,2.10022257,2663.6,2663.5,0.75079]
[1752067233344,2.10022257,2663.6,2663.5,1.37059]
[1752067233646,3.95892257,2663.6,2663.5,0.75079]
[1752067234250,3.95892257,2663.6,2663.5,1.37059]
[1752067234551,3.95892257,2663.6,2663.5,0.75079]
[1752067234746,3.95892257,2663.6,2663.5,1.37059]
[1752067235651,4.92942257,2663.6,2663.5,1.37059]
[1752067235848,4.92942257,2663.6,2663.5,0.75079]
[1752067236349,5.68018257,2663.6,2663.5,0.75079]
[1752067236549,4.92942257,2663.6,2663.5,0.75079]
[1752067236850,3.95892257,2663.6,2663.5,0.75079]
[1752067237350,3.95892257,2663.6,2663.5,1.37059]
[1752067238351,4.70968257,2663.6,2663.5,1.37059]
[1752067238546,3.95892257,2663.6,2663.5,1.37059]
[1752067242048,5.68018257,2663.6,2663.5,0.75079]
[1752067243355,4.70968257,2663.6,2663.5,1.37059]
[1752067243750,4.70968257,2663.6,2663.5,0.75079]
[1752067243950,3.95892257,2663.6,2663.5,1.37059]
[1752067244353,4.70968257,2663.6,2663.5,1.37059]
[1752067244562,0.75079,2663.5,2663.4,0.75079]
[1752067244854,35.76714522,2663.5,2663.4,0.75079]
[1752067245750,35.76714522,2663.5,2663.0,2.81781]
[1752067245751,41.89337522,2663.5,2662.9,1.87737]
[1752067246056,3.9587,2663.2,2663.1,0.75086]
[1752067246254,32.10692257,2663.2,2663.1,0.75086]
[1752067246454,33.07742257,2663.2,2663.1,0.75086]
[1752067247052,33.73352257,2663.2,2663.1,0.75086]
[1752067247250,35.12415522,2663.2,2663.1,0.75086]
[1752067251857,33.40275522,2663.2,2663.1,1.37066]
[1752067252158,33.40275522,2663.2,2663.1,0.75086]
[1752067252359,34.15362522,2663.2,2663.1,0.75086]
[1752067252555,34.15362522,2663.2,2663.1,1.40486]
[1752067252756,35.08942522,2663.2,2663.1,0.75086]
[1752067254470,0.75096,2663.0,2662.9,0.75091]
[1752067254668,26.041,2663.0,2662.9,1.40491]
[1752067254866,27.50932257,2663.0,2662.9,1.40491]
[1752067255067,28.17532257,2663.0,2662.9,1.40491]
[1752067255269,28.26025257,2663.0,2662.9,1.40491]
[1752067255568,28.17532257,2663.0,2662.9,1.40491]
[1752067255868,28.17532257,2663.0,2662.9,2.36591]
[1752067256267,26.707,2663.0,2662.9,2.36591]
[1752067256769,27.45793,2663.0,2662.9,1.40491]
[1752067257469,1.41693,2663.0,2662.9,1.40491]
[1752067257672,27.45693,2663.0,2662.9,1.40491]
[1752067257870,0.75098,2662.9,2662.7,0.6221]
[1752067258066,26.704,2662.8,2662.7,0.75099]
[1752067258269,28.6193,2662.8,2662.7,1.40499]
[1752067258468,32.82321265,2662.8,2662.1,5.43746319]
[1752067258666,3.95894,2662.3,2662.2,1.40805]
[1752067258860,29.99594,2662.3,2662.2,2.06205]
[1752067259571,29.99594,2662.3,2662.2,1.3109]
[1752067259770,30.64084,2662.3,2662.2,2.06205]
[1752067260662,29.8897,2662.3,2662.2,2.06205]
[1752067260862,30.64082,2662.3,2662.2,1.3109]
[1752067261068,32.10163422,2662.3,2662.2,0.654]
[1752067261274,31.1402,2662.3,2662.2,1.40515]
[1752067261661,33.35111598,2662.3,2662.2,1.40515]
[1752067262070,34.01711598,2662.3,2662.2,0.75115]
[1752067262268,0.75116,2662.2,2662.1,0.75116]
[1752067262469,0.75116,2662.2,2662.1,1.40516]
[1752067262873,2.12026,2662.2,2662.1,1.40516]
[1752067263069,2.12025,2662.2,2662.1,1.40516]
[1752067263371,30.5557,2662.3,2662.2,0.75115]
[1752067263772,30.5557,2662.3,2662.2,1.40515]
[1752067263973,30.64082,2662.3,2662.2,1.40515]
[1752067264174,31.30682,2662.3,2662.2,1.40515]
[1752067264576,29.8897,2662.3,2662.2,1.40515]
[1752067264764,30.5557,2662.3,2662.2,1.40515]
[1752067264965,3.2078,2662.3,2662.2,1.40515]